bitfinex-derivatives/quotes_SOLF0:USTF0_20241011
["timestamp","ask_amount","ask_price","bid_price","bid_amount"]
[1728611247918,3.5908,139.36,139.35,5.02]
[1728611248319,3.5915,139.34,139.33,5.02]
[1728611248619,3.5915,139.34,139.33,13.85]
[1728611251420,3.5912,139.35,139.33,17.4416]
[1728611251630,0.12502,139.37,139.34,8.83]
[1728611253228,3.5911,139.35,139.34,8.83]
[1728611253614,0.12502,139.37,139.34,8.83]
[1728611254024,0.12502,139.37,139.33,5.02]
[1728611254422,0.12502,139.37,139.32,8.83]
[1728611254621,0.12502,139.37,139.32,13.85]
[1728611254622,3.5916,139.34,139.32,13.85]
[1728611256420,0.12502,139.37,139.32,13.85]
[1728611256627,3.5908,139.36,139.35,8.83]
[1728611257529,3.71572,139.37,139.35,8.83]
[1728611257731,0.12502,139.37,139.35,8.83]
[1728611259524,3.5908,139.36,139.35,8.83]
[1728611260233,0.12502,139.37,139.35,12.421]
[1728611260427,0.12502,139.37,139.36,8.83]
[1728611261330,3.71562,139.37,139.36,8.83]
[1728611271535,0.12502,139.37,139.36,8.83]
[1728611273733,0.12502,139.37,139.36,12.4208]
[1728611281538,1.43042,139.43,139.36,8.83]
[1728611281848,3.5897,139.41,139.39,8.83]
[1728611283852,3.5898,139.4,139.38,13.89]
[1728611285239,0.12502,139.43,139.39,8.83]
[1728611285449,3.71402,139.43,139.42,8.83]
[1728611286750,3.5894,139.42,139.41,8.83]
[1728611290154,3.71412,139.43,139.41,8.83]
[1728611290454,3.71412,139.43,139.42,8.83]
[1728611292655,0.12502,139.43,139.41,5.06]
[1728611292862,3.5893,139.42,139.41,5.06]
[1728611293355,3.5898,139.4,139.34,91.68486479]
[1728611293650,3.5898,139.4,139.38,8.83]
[1728611293856,3.5898,139.4,139.38,13.87]
[1728611294852,3.5898,139.4,139.39,8.83]
[1728611295556,0.12502,139.43,139.39,8.83]
[1728611295750,0.12502,139.43,139.41,8.83]
[1728611296257,3.71412,139.43,139.42,8.83]
[1728611300957,0.12502,139.43,139.42,12.4193]
[1728611303256,8.95502,139.49,139.44,3.5886]
[1728611303558,8.95502,139.49,139.45,8.83]
[1728611303758,3.588,139.47,139.45,8.83]
[1728611304455,8.95502,139.49,139.44,13.87]
[1728611304762,8.95502,139.49,139.43,5.04]
[1728611304763,8.83,139.47,139.43,5.04]
[1728611304949,3.589,139.44,139.43,5.04]
[1728611307767,3.589,139.44,139.43,13.87]
[1728611307955,8.83,139.47,139.43,13.87]
[1728611308158,3.5886,139.45,139.43,13.87]
[1728611308554,3.5882,139.47,139.44,8.83]
[1728611308764,0.12502,139.49,139.45,8.83]
[1728611309856,3.5882,139.47,139.45,8.83]
[1728611313571,8.83,139.48,139.43,5.04]
[1728611313768,8.83,139.48,139.43,13.87]
[1728611314172,3.5886,139.45,139.43,13.87]
[1728611314764,3.5884,139.46,139.44,8.83]
[1728611316666,8.83,139.48,139.44,8.83]
[1728611316867,3.5885,139.45,139.43,13.87]
[1728611317467,8.83,139.48,139.43,13.87]
[1728611317662,3.5888,139.44,139.43,5.04]
[1728611318272,3.5898,139.4,139.39,4.1122]
[1728611318566,8.83,139.44,139.38,8.83]
[1728611318763,8.83,139.44,139.38,13.87]
[1728611318764,3.5901,139.39,139.38,13.87]
[1728611320877,8.83,139.43,139.35,1.3234]
[1728611321177,3.5903,139.38,139.37,13.99502]
[1728611321378,3.5903,139.38,139.37,5.16502]
[1728611321774,3.5903,139.38,139.37,13.99502]
[1728611323880,8.83,139.44,139.37,13.99502]
[1728611324077,3.5902,139.39,139.37,5.16502]
[1728611324967,8.83,139.44,139.37,5.16502]
[1728611325271,13.92386912,139.45,139.4,8.83]
[1728611326382,3.5895,139.41,139.4,8.83]
[1728611327282,8.83,139.44,139.37,5.16502]
[1728611327577,8.83,139.42,139.37,13.99502]
[1728611327772,3.5903,139.38,139.37,13.99502]
[1728611329982,8.83,139.42,139.37,13.99502]
[1728611330175,3.5901,139.39,139.37,13.99502]
[1728611330386,8.83,139.42,139.37,13.99502]
[1728611331084,3.5903,139.38,139.37,13.99502]
[1728611332983,3.59,139.4,139.37,13.99502]
[1728611333182,3.59,139.4,139.39,8.83]
[1728611335382,3.5903,139.39,139.38,8.83]
[1728611336270,8.83,139.42,139.37,5.16502]
[1728611336572,3.5903,139.38,139.37,13.99502]
[1728611337576,3.5903,139.38,139.37,5.16502]
[1728611337779,3.5903,139.38,139.37,13.99502]
[1728611338390,3.5903,139.38,139.37,8.95502]
[1728611338686,3.5903,139.38,139.37,14.01502]
[1728611339779,3.5902,139.39,139.37,14.01502]
[1728611339982,3.5902,139.39,139.38,8.83]
[1728611343582,3.5902,139.39,139.37,14.01502]
[1728611343782,3.5903,139.38,139.37,5.18502]
[1728611346188,3.5903,139.38,139.37,14.01502]
[1728611346488,3.5903,139.38,139.37,5.18502]
[1728611349095,3.5903,139.38,139.37,0.12502]
[1728611360796,3.5902,139.39,139.37,3.71562]
[1728611361795,3.5902,139.39,139.37,0.12502]
[1728611362193,8.83,139.41,139.37,8.95502]
[1728611362396,3.5899,139.4,139.37,12.54552]
[1728611363296,3.5902,139.39,139.37,8.95502]
[1728611364100,3.5899,139.4,139.38,8.83]
[1728611364398,3.5899,139.4,139.38,13.89]
[1728611366496,3.5896,139.41,139.39,8.83]
[1728611366799,15.3134,139.45,139.39,8.83]
[1728611367187,3.5895,139.42,139.39,12.4199]
[1728611367904,3.5896,139.41,139.39,12.4199]
[1728611368295,3.5896,139.41,139.39,8.83]
[1728611369198,3.5898,139.4,139.38,13.89]
[1728611374295,3.5901,139.39,139.38,13.89]
[1728611374602,3.5901,139.39,139.38,5.06]
[1728611375699,8.83,139.42,139.38,5.06]
[1728611375899,3.59,139.4,139.38,5.06]
[1728611378707,3.5901,139.39,139.38,5.06]
[1728611379312,3.5903,139.38,139.37,0.12502]
[1728611379514,12.4203,139.38,139.37,0.12502]
[1728611379810,4.90693907,139.38,139.37,0.12502]
[1728611380013,3.5903,139.38,139.37,0.12502]
[1728611390215,12.4203,139.38,139.37,0.12502]
[1728611397027,12.35118702,139.38,139.31,0.12502]
[1728611397231,3.5918,139.33,139.31,5.16502]
[1728611397432,8.83,139.35,139.31,8.75712]
[1728611397638,8.83,139.36,139.31,17.58712]
[1728611397931,3.5916,139.33,139.31,17.58712]
[1728611398431,3.5916,139.33,139.31,13.99502]
[1728611400631,3.5919,139.32,139.31,0.12502]
[1728611404034,3.5917,139.33,139.31,0.12502]
[1728611404336,5.04,139.36,139.32,8.83]
[1728611404641,3.5913,139.35,139.32,12.4219]
[1728611404844,8.83,139.37,139.32,8.83]
[1728611406338,3.5915,139.34,139.32,8.83]
[1728611407443,3.5915,139.34,139.31,17.58692]
[1728611407947,3.5909,139.36,139.33,8.83]
[1728611408449,3.5909,139.36,139.33,12.4215]
[1728611409646,8.83,139.39,139.35,8.83]
[1728611409944,3.5904,139.38,139.35,12.4211]
[1728611410144,13.87,139.4,139.35,12.4211]
[1728611410340,5.04,139.4,139.35,12.4211]
[1728611410540,13.87,139.4,139.35,12.4211]
[1728611411545,3.5906,139.38,139.35,12.4211]
[1728611412340,3.5901,139.39,139.36,12.4207]
[1728611412548,3.5901,139.39,139.37,8.83]
[1728611414747,3.5901,139.39,139.37,12.4206]
[1728611416957,3.5899,139.4,139.37,12.4206]
[1728611417356,3.5899,139.4,139.38,3.5903]
[1728611418050,3.5899,139.4,139.38,12.4203]
[1728611418856,0.12502,139.43,139.38,12.4203]
[1728611419060,3.5897,139.41,139.38,12.4203]
[1728611419363,3.5897,139.41,139.39,3.5901]
[1728611419750,3.5897,139.41,139.38,8.83]
[1728611420048,3.5897,139.41,139.38,12.4203]
[1728611420244,8.95502,139.43,139.38,8.83]
[1728611420459,3.5894,139.42,139.38,8.83]
[1728611420651,3.5894,139.42,139.39,3.5899]
[1728611420850,3.5894,139.42,139.4,8.83]
[1728611423257,3.5894,139.42,139.4,13.87]
[1728611424058,3.5894,139.42,139.4,17.4598]
[1728611424459,3.71412,139.43,139.41,8.83]
[1728611424772,0.12502,139.49,139.42,8.83]
[1728611425065,0.12502,139.49,139.45,12.4185]
[1728611425066,3.588,139.48,139.45,12.4185]
[1728611425362,0.12502,139.49,139.45,12.4185]
[1728611425363,0.12502,139.49,139.45,8.83]
[1728611425564,0.12502,139.49,139.44,5.02]
[1728611425768,0.12502,139.49,139.46,8.83]
[1728611426263,8.95502,139.49,139.44,5.02]
[1728611427368,3.5881,139.47,139.44,5.02]
[1728611428160,8.95502,139.49,139.44,5.02]
[1728611429062,3.5881,139.47,139.45,8.83]
[1728611430167,0.12502,139.49,139.45,8.83]
[1728611430465,3.5881,139.47,139.45,8.83]
[1728611436493,3.5881,139.47,139.46,8.83]
[1728611436691,3.5879,139.48,139.46,8.83]
[1728611436886,0.12502,139.49,139.47,8.83]
[1728611437104,0.12502,139.49,139.48,8.83]
[1728611437392,0.12502,139.49,139.48,12.4177]
[1728611437591,3.5869,139.52,139.48,8.83]
[1728611437794,3.5869,139.52,139.51,8.83]
[1728611439082,3.5865,139.53,139.51,8.83]
[1728611440067,8.95502,139.55,139.51,8.83]
[1728611440068,3.5867,139.52,139.51,8.83]
[1728611442474,0.12502,139.55,139.51,8.83]
[1728611442674,3.5865,139.53,139.51,8.83]
[1728611442878,8.83,139.54,139.5,5.02]
[1728611443064,3.5879,139.48,139.45,3.5884]
[1728611443266,8.83,139.51,139.45,3.5884]
[1728611443267,8.83,139.51,139.46,5.02]
[1728611443881,3.5877,139.49,139.46,8.6083]
[1728611444273,3.5877,139.49,139.46,17.4383]
[1728611444576,3.5877,139.49,139.46,12.4183]
[1728611444780,3.5877,139.49,139.46,17.4383]
[1728611445675,3.5877,139.49,139.47,8.83]
[1728611448588,8.83,139.52,139.46,8.6083]
[1728611448589,3.5871,139.51,139.48,12.4176]
[1728611448779,3.5871,139.51,139.5,8.83]
[1728611448984,8.83,139.54,139.5,8.83]
[1728611449186,0.12502,139.55,139.52,8.83]
[1728611450381,0.12502,139.55,139.49,5.02]
[1728611450382,3.5867,139.53,139.51,8.83]
[1728611450686,8.95502,139.55,139.51,8.83]
[1728611450887,3.5867,139.52,139.51,8.83]
[1728611453285,3.5871,139.51,139.49,13.85]
[1728611455588,8.83,139.54,139.5,8.83]
[1728611455788,3.5868,139.52,139.5,8.83]
[1728611455987,0.12502,139.55,139.51,8.83]
[1728611456185,0.12502,139.55,139.54,8.83]
[1728611457387,0.12502,139.55,139.54,12.4162]
[1728611457893,0.12518,139.56,139.54,8.83]
[1728611458184,5.14502,139.61,139.5,7.56963677]
[1728611458185,0.12502,139.61,139.55,13.85]
[1728611458385,0.12502,139.61,139.6,8.83]
[1728611458595,3.70952,139.61,139.6,8.83]
[1728611458883,3.70952,139.61,139.59,8.83]
[1728611459088,0.12502,139.61,139.59,8.83]
[1728611459285,0.12502,139.61,139.56,1.3014]
[1728611459484,0.12502,139.61,139.58,8.83]
[1728611459889,0.12502,139.61,139.59,8.83]
[1728611460290,3.70952,139.61,139.59,8.83]
[1728611460484,3.70952,139.61,139.57,13.85]
[1728611460485,0.12502,139.61,139.57,13.85]
[1728611460987,3.5847,139.6,139.57,13.85]
[1728611461187,0.12502,139.61,139.59,8.83]
[1728611462281,0.12502,139.61,139.58,8.83]
[1728611463087,3.70942,139.61,139.58,8.83]
[1728611463492,0.12502,139.61,139.59,8.83]
[1728611464187,0.12502,139.61,139.6,12.4147]
[1728611464590,0.12502,139.61,139.6,17.4347]
[1728611464888,0.12502,139.61,139.6,13.85]
[1728611465390,0.12502,139.61,139.6,5.02]
[1728611465391,3.70942,139.61,139.6,5.02]
[1728611465592,3.70942,139.61,139.58,8.83]
[1728611465791,3.70942,139.61,139.58,13.85]
[1728611466191,3.70942,139.61,139.58,17.4351]
[1728611467091,3.70942,139.61,139.59,8.83]
[1728611467296,0.12502,139.61,139.6,8.83]
[1728611467491,0.12502,139.67,139.6,8.83]
[1728611467685,0.12502,139.67,139.63,8.83]
[1728611467882,3.5838,139.64,139.62,8.83]
[1728611468288,8.95502,139.67,139.62,8.83]
[1728611468492,3.5836,139.65,139.62,8.83]
[1728611469294,3.5837,139.64,139.62,8.83]
[1728611470900,3.5841,139.63,139.61,5.02]
[1728611472502,3.5841,139.63,139.61,13.85]
[1728611475097,0.12502,139.67,139.62,8.83]
[1728611475298,0.12502,139.67,139.59,77.4]
[1728611475299,0.12502,139.67,139.66,8.83]
[1728611475493,0.12502,139.67,139.66,13.93]
[1728611475701,3.70792,139.67,139.66,5.1]
[1728611475994,0.12502,139.67,139.66,5.1]
[1728611476199,0.12502,139.67,139.64,3.5835]
[1728611476497,0.12502,139.67,139.63,3.5838]
[1728611476712,3.5837,139.64,139.59,77.4]
[1728611477001,3.5837,139.64,139.61,8.83]
[1728611477904,3.5837,139.64,139.61,12.4143]
[1728611478101,3.70792,139.67,139.63,8.83]
[1728611478297,0.12502,139.67,139.65,8.83]
[1728611478500,0.12502,139.67,139.65,12.4132]
[1728611478696,0.12502,139.67,139.64,5.1]
[1728611478697,0.12502,139.67,139.66,8.83]
[1728611479097,0.12502,139.67,139.66,12.4131]
[1728611480406,3.5819,139.71,139.66,17.3531]
[1728611480704,3.5819,139.71,139.67,8.6827]
[1728611481302,3.5816,139.72,139.68,3.5824]
[1728611481508,0.12502,139.73,139.71,13.77]
[1728611481707,3.51368352,139.77,139.72,5.1]
[1728611481906,3.51368352,139.77,139.74,13.77]
[1728611482113,3.5801,139.78,139.75,5.1]
[1728611483004,3.5804,139.77,139.75,5.1]
[1728611483402,13.77,139.81,139.72,13.77]
[1728611483606,3.5809,139.75,139.7,13.77]
[1728611483805,0.12502,139.79,139.72,13.77]
[1728611484014,0.12502,139.79,139.74,13.77]
[1728611484218,0.12502,139.79,139.76,17.3504]
[1728611484504,0.12502,139.79,139.77,5.1]
[1728611485711,0.12502,139.79,139.77,8.6801]
[1728611485916,0.12502,139.79,139.77,5.1]
[1728611486109,0.12502,139.79,139.76,13.77]
[1728611486305,0.12502,139.79,139.77,5.1]
[1728611486506,0.12502,139.85,139.78,13.77]
[1728611486712,0.12502,139.85,139.79,5.1]
[1728611487016,1.31541957,139.84,139.8,5.1]
[1728611488115,3.5788,139.83,139.8,5.1]
[1728611488315,0.12502,139.85,139.78,13.77]
[1728611488609,1.31543956,139.84,139.79,5.1]
[1728611488815,0.12502,139.85,139.8,5.1]
[1728611489011,1.31543478,139.84,139.8,5.1]
[1728611489212,0.12502,139.85,139.8,5.1]
[1728611489419,1.31541378,139.84,139.8,5.1]
[1728611489618,3.5788,139.83,139.8,5.1]
[1728611489916,0.12502,139.85,139.81,13.77]
[1728611490116,0.12502,139.85,139.81,16.4559]
[1728611490308,3.70342,139.85,139.81,2.6859]
[1728611490511,0.12502,139.85,139.82,5.1]
[1728611491014,0.12502,139.85,139.77,13.77]
[1728611491211,0.12502,139.85,139.78,5.1]
[1728611491517,3.5792,139.82,139.77,13.77]
[1728611491710,3.5792,139.82,139.78,5.1]
[1728611492419,3.5789,139.83,139.78,5.1]
[1728611492810,3.5789,139.83,139.79,3.5796]
[1728611493512,0.12502,139.85,139.79,3.5796]
[1728611493715,1.31542987,139.84,139.79,3.5796]
[1728611494017,3.5789,139.83,139.8,5.1]
[1728611494819,0.12502,139.85,139.8,5.1]
[1728611495011,4.89413662,139.84,139.8,5.1]
[1728611495207,0.12502,139.85,139.8,5.1]
[1728611495411,3.70342,139.85,139.81,3.5792]
[1728611495608,3.70342,139.85,139.8,5.1]
[1728611496017,3.70342,139.85,139.81,3.579]
[1728611496226,0.12502,139.85,139.8,5.1]
[1728611496623,0.12502,139.85,139.82,3.5789]
[1728611496824,0.12502,139.85,139.83,5.1]
[1728611498225,0.12502,139.85,139.83,8.6787]
[1728611499013,0.12502,139.85,139.81,3.5792]
[1728611499222,0.12502,139.85,139.82,5.1]
[1728611499624,3.5787,139.84,139.82,5.1]
[1728611499922,3.5787,139.84,139.83,5.1]
[1728611500119,4.8838102,139.84,139.83,5.1]
[1728611500519,1.3051102,139.84,139.78,13.77]
[1728611500719,3.5792,139.82,139.79,5.1]
[1728611501115,3.5792,139.82,139.78,13.77]
[1728611501314,3.5792,139.82,139.79,5.1]
[1728611501515,3.5789,139.83,139.79,8.6796]
[1728611501719,1.30521703,139.82,139.79,8.6796]
[1728611502023,1.30521703,139.82,139.79,5.1]
[1728611502225,0.12502,139.85,139.8,3.5793]
[1728611502423,1.30521381,139.84,139.8,3.5793]
[1728611503420,4.88385883,139.83,139.8,3.5793]
[1728611503624,3.5788,139.83,139.8,3.5793]
[1728611504020,0.12502,139.85,139.8,3.5793]
[1728611504323,3.5786,139.84,139.8,3.5793]
[1728611504727,3.5785,139.84,139.8,3.5793]
[1728611504931,0.12502,139.85,139.81,5.28]
[1728611505329,1.30493362,139.84,139.81,5.28]
[1728611506229,0.12502,139.85,139.81,5.28]
[1728611506526,3.5789,139.83,139.81,5.28]
[1728611507029,0.12502,139.85,139.78,13.77]
[1728611507226,3.5796,139.8,139.79,5.28]
[1728611509620,0.12502,139.85,139.76,2.6859]
[1728611509825,3.5794,139.81,139.79,5.28]
[1728611510130,0.12502,139.85,139.79,5.28]
[1728611510429,3.5793,139.81,139.79,5.28]
[1728611510832,8.8,139.81,139.76,2.6859]
[1728611511027,3.5802,139.78,139.76,11.4859]
[1728611511223,3.5802,139.78,139.77,5.28]
[1728611511918,3.5799,139.79,139.77,5.28]
[1728611515024,3.5799,139.79,139.78,5.28]
[1728611518725,3.5799,139.79,139.76,3.5805]
[1728611518925,3.5799,139.79,139.78,5.28]
[1728611519431,3.5792,139.82,139.78,5.28]
[1728611519631,1.4133,139.84,139.78,5.28]
[1728611520334,3.5792,139.82,139.78,8.8599]
[1728611520536,1.4133,139.84,139.78,5.28]
[1728611521031,4.90800056,139.84,139.78,5.28]
[1728611522130,13.75,139.83,139.78,5.28]
[1728611523435,3.5798,139.79,139.78,5.28]
[1728611523828,13.75,139.83,139.75,1.3825]
[1728611524034,13.75,139.83,139.76,5.28]
[1728611524827,3.5793,139.81,139.76,5.28]
[1728611525032,13.75,139.83,139.76,8.8603]
[1728611525439,3.58,139.79,139.76,8.8603]
[1728611526042,3.5802,139.78,139.76,5.28]
[1728611526539,3.5803,139.77,139.74,108.74403968]
[1728611526733,3.5803,139.77,139.75,5.28]
[1728611527432,3.5808,139.75,139.74,91.41313968]
[1728611527833,3.5808,139.75,139.74,96.69313968]
[1728611528236,3.5808,139.75,139.72,3.5815]
[1728611528540,3.5808,139.75,139.73,5.40502]
[1728611528739,3.5811,139.74,139.73,0.12502]
[1728611529438,3.5809,139.75,139.73,0.12502]
[1728611529637,15.1123,139.79,139.73,0.12502]
[1728611529941,3.5811,139.74,139.73,0.12502]
[1728611532237,5.28,139.78,139.73,0.12502]
[1728611532539,8.81,139.78,139.74,8.81]
[1728611532731,8.81,139.78,139.74,12.391]
[1728611533040,3.5805,139.77,139.74,12.391]
[1728611533442,3.5805,139.77,139.74,8.81]
[1728611533843,3.5806,139.76,139.74,8.81]
[1728611534343,3.5806,139.76,139.73,3.70622]
[1728611534344,8.81,139.8,139.75,17.6706]
[1728611534647,3.58,139.79,139.75,8.8606]
[1728611534845,19.03,139.82,139.75,8.8606]
[1728611535046,1.30543205,139.81,139.75,8.8606]
[1728611535246,1.30543205,139.81,139.75,5.28]
[1728611535435,13.75,139.82,139.76,3.5805]
[1728611536139,3.5795,139.81,139.76,3.5805]
[1728611536341,13.75,139.82,139.75,8.8607]
[1728611536732,3.5801,139.78,139.73,15.23532]
[1728611536945,13.75,139.81,139.73,5.06642]
[1728611537143,13.75,139.81,139.74,5.24]
[1728611537343,3.5804,139.77,139.74,5.24]
[1728611537546,3.5804,139.77,139.74,8.8211]
[1728611539344,13.75,139.81,139.74,5.24]
[1728611539649,13.75,139.79,139.74,5.24]
[1728611539947,13.75,139.81,139.74,5.24]
[1728611540342,3.58,139.79,139.75,3.5808]
[1728611540938,3.58,139.79,139.76,3.5804]
[1728611542243,3.5799,139.79,139.76,3.5804]
[1728611543639,13.75,139.82,139.76,3.5804]
[1728611543840,3.5801,139.78,139.76,3.5804]
[1728611544344,3.5799,139.79,139.76,3.5804]
[1728611545259,3.5794,139.81,139.78,3.58]
[1728611545460,56.71687008,139.83,139.77,5.24]
[1728611546659,56.71687008,139.83,139.77,18.99]
[1728611546857,0.12502,139.85,139.77,18.99]
[1728611547958,0.12502,139.85,139.81,13.75]
[1728611548155,0.12502,139.85,139.82,8.8189]
[1728611548358,0.12502,139.85,139.82,18.99]
[1728611548759,0.12502,139.85,139.84,3.5785]
[1728611550262,3.5776,139.88,139.84,3.5785]
[1728611550562,3.5776,139.88,139.85,5.24]
[1728611551251,3.5776,139.88,139.85,8.8182]
[1728611551451,3.5779,139.87,139.85,5.24]
[1728611552065,3.578,139.86,139.85,5.24]
[1728611555263,3.5779,139.87,139.85,5.24]
[1728611556680,0.12502,139.91,139.85,5.24]
[1728611557273,0.12502,139.91,139.87,13.75]
[1728611557880,0.12502,139.91,139.89,13.75]
[1728611558179,0.12502,139.91,139.9,9.437]
[1728611558382,0.12502,139.91,139.9,5.86]
[1728611558671,0.12502,139.91,139.9,9.437]
[1728611559978,0.12502,139.91,139.9,12.1697]
[1728611560173,3.70022,139.97,139.9,8.5927]
[1728611560379,1.30416652,139.96,139.92,3.5764]
[1728611560879,3.5759,139.95,139.9,12.1695]
[1728611561079,1.30416652,139.94,139.9,12.1695]
[1728611561267,3.5759,139.95,139.9,12.1695]
[1728611561469,1.30415069,139.94,139.9,12.1695]
[1728611561871,3.576,139.94,139.9,12.1696]
[1728611562077,1.30418485,139.93,139.9,12.1696]
[1728611562283,0.12502,139.97,139.9,8.5927]
[1728611562479,3.5759,139.95,139.91,9.4367]
[1728611562785,1.30420284,139.94,139.91,5.86]
[1728611563081,1.30420284,139.93,139.92,3.5764]
[1728611563283,1.30420284,139.95,139.92,3.5764]
[1728611563485,1.30420284,139.94,139.92,3.5764]
[1728611563785,1.30420284,139.93,139.92,3.5764]
[1728611563984,3.5756,139.96,139.92,3.5764]
[1728611563985,1.30420284,139.95,139.92,3.5764]
[1728611564174,1.30420284,139.94,139.92,3.5764]
[1728611564371,3.70022,139.97,139.93,3.5762]
[1728611564682,1.30417764,139.96,139.93,3.5762]
[1728611565181,1.30417764,139.96,139.91,19.61]
[1728611565485,1.30415696,139.95,139.92,3.5763]
[1728611565781,1.30415696,139.95,139.93,13.75]
[1728611566079,1.30415696,139.96,139.93,13.75]
[1728611566277,1.30412358,139.95,139.93,13.75]
[1728611566481,0.12502,139.97,139.94,3.5759]
[1728611566676,1.30404481,139.96,139.95,5.86]
[1728611566984,4.87944481,139.96,139.95,5.86]
[1728611567386,0.12502,139.97,139.95,5.86]
[1728611570589,0.12502,139.97,139.95,9.4356]
[1728611570789,0.12502,139.97,139.95,5.86]
[1728611571393,3.70022,139.97,139.95,5.86]
[1728611572886,0.12502,139.97,139.93,3.5761]
[1728611573083,0.12502,139.97,139.94,5.86]
[1728611573398,0.12502,139.97,139.94,9.4359]
[1728611576087,0.12502,139.97,139.92,1.3918]
[1728611576389,8.8,139.94,139.92,5.86]
[1728611576591,3.5766,139.92,139.88,3.5774]
[1728611576798,8.8,139.94,139.89,5.86]
[1728611577295,8.8,139.92,139.89,5.86]
[1728611577696,8.8,139.91,139.88,5.86]
[1728611577894,8.8,139.9,139.87,5.86]
[1728611578192,8.8,139.91,139.87,5.86]
[1728611578385,13.73,139.93,139.87,5.86]
[1728611578591,1.30445482,139.92,139.87,5.86]
[1728611578790,3.5772,139.9,139.87,5.86]
[1728611579585,13.73,139.94,139.87,5.86]
[1728611579794,3.5773,139.89,139.87,5.86]
[1728611580104,13.73,139.94,139.87,5.86]
[1728611580401,3.5775,139.89,139.87,5.86]
[1728611580704,13.73,139.94,139.87,5.86]
[1728611580897,3.577,139.9,139.87,9.4377]
[1728611581203,3.577,139.9,139.87,5.86]
[1728611582803,3.5768,139.91,139.87,9.4377]
[1728611583391,13.73,139.95,139.87,5.86]
[1728611583697,1.30433865,139.94,139.88,13.73]
[1728611583899,5.86,139.96,139.88,13.73]
[1728611584201,3.5764,139.93,139.89,3.5771]
[1728611584409,13.85502,139.97,139.88,13.73]
[1728611584604,3.5763,139.93,139.89,3.5772]
[1728611585194,13.85502,139.97,139.89,3.5772]
[1728611585500,3.5765,139.92,139.89,3.5772]
[1728611586499,13.85502,139.97,139.89,3.5772]
[1728611586804,3.5763,139.93,139.88,13.73]
[1728611587009,3.5763,139.93,139.9,3.5769]
[1728611587335,0.12502,139.97,139.9,13.73]
[1728611587526,0.12502,139.97,139.91,6.08]
[1728611587527,1.30416509,139.96,139.91,6.08]
[1728611588320,3.5761,139.94,139.91,6.08]
[1728611589527,3.5761,139.94,139.91,9.6566]
[1728611589728,0.12502,139.97,139.91,6.08]
[1728611589921,3.5757,139.95,139.91,6.08]
[1728611590120,3.5757,139.95,139.91,9.6566]
[1728611590517,3.5755,139.96,139.91,6.08]
[1728611591034,0.12502,139.97,139.91,19.81]
[1728611591329,0.12502,139.97,139.93,13.73]
[1728611591704,0.12502,139.97,139.93,17.306]
[1728611592013,0.12502,139.97,139.93,13.73]
[1728611592304,0.12502,139.97,139.94,3.5758]